Cogmind - Beta 9.5 @@@ ROGUE MODE // 2020.04.05 @ 09:31:57 // AFD2020/Player2 Player: Finestep Result: Core destroyed Performance ------------- Evolutions (0) 0 Regions Visited (2) 400 Robots Destroyed (28) 140 Value Destroyed (272) 272 Prototype IDs (0) 0 Alien Tech Used (0) 0 Bonus (92) 92 TOTAL SCORE: 904 Bonus ------- Follower Combat Kills 209 Friendly Fire -117 Cogmind --------- Core Integrity 0/250 Matter 243/300 Energy 150/150 System Corruption 2% Temperature Cool (0) Movement Treading (180) Ox1 Location -10/Mines Parts ------- > --- POWER (1) -------- Light Angular Momentum Engine > --- PROPULSION (2) --- Light Treads Light Treads > --- UTILITY (2) ------ Large Storage Unit High-capacity Storage Unit > --- WEAPON (2) ------- EM Pulse Gun EM Shotgun > --- INVENTORY (18) --- Light Treads Wheel Wheel Improved Heat Sink Large Storage Unit Large Storage Unit Large Matter Pod (150) Light Armor Plating Light Armor Plating Light Armor Plating Hacking Suite Medium Laser Assault Rifle Light Assault Rifle Grenade Launcher Datajack Mining Laser Peak State ------------ > --- POWER ------------ Light Angular Momentum Engine > --- PROPULSION ------- Light Treads Light Treads > --- UTILITY ---------- Large Storage Unit High-capacity Storage Unit > --- WEAPON ----------- EM Pulse Gun EM Shotgun > --- INVENTORY -------- Light Treads Wheel Wheel Improved Heat Sink Large Storage Unit Large Storage Unit Large Matter Pod Light Armor Plating Light Armor Plating Light Armor Plating Hacking Suite Medium Laser Assault Rifle Light Assault Rifle Grenade Launcher Datajack Mining Laser [Rating: 14] Favorites ----------- Power Light Ion Engine Engine Light Ion Engine Propulsion Light Treads Treads Light Treads Wheel Wheel Utility Large Storage Unit Storage Large Storage Unit Weapon Assault Rifle Energy Gun Medium Laser Energy Cannon Beam Cannon Ballistic Gun Assault Rifle Launcher Grenade Launcher Special Weapon Mining Laser Build | -11 -10 -10 ------- Run | Scr Mat Min Slots Evolved . | . . . Power . | . . . Propulsion . | . . . Utility . | . . . Weapon . | . . . Parts Attached 28 | 6 9 13 Power 3 | 1 . 2 Engine 3 | 1 . 2 Core . | . . . Reactor . | . . . Propulsion 4 | 2 . 2 Treads 3 | 1 . 2 Leg . | . . . Wheel 1 | 1 . . Hover . | . . . Flight . | . . . Utility 4 | 1 2 1 Device . | . . . Storage 4 | 1 2 1 Processor . | . . . Hackware . | . . . Protection . | . . . Artifact . | . . . Weapon 17 | 2 7 8 Energy Gun 5 | 1 . 4 Energy Cannon 1 | . . 1 Ballistic Gun 7 | 1 4 2 Ballistic Cannon . | . . . Launcher 1 | . . 1 Special Weapon 3 | . 3 . Impact Weapon . | . . . Slashing Weapon . | . . . Piercing Weapon . | . . . Special Melee Weapon . | . . . Unidentified Prototypes . | . . . Parts Lost 1 | . . 1 Power 1 | . . 1 Propulsion . | . . . Utility . | . . . Weapon . | . . . Highest Loss Streak 1 | . . 1 Average Slot Usage (%) 97 | . 95 100 Engine 14 | . 14 14 Treads 14 | . 14 15 Wheel 13 | . 14 12 Storage 25 | . 23 28 Energy Gun 1 | . . 2 Energy Cannon 2 | . . 6 Ballistic Gun 23 | . 27 18 Naked Turns . | . . . Heaviest Build 63 | 11 39 63 Greatest Support 40 | 10 10 40 Greatest Overweight (x) 5 | 1 3 5 Average Overweight (x) 3 | . 2 4 Largest Inventory Capacity 18 | 6 16 18 Average Capacity 14 | 5 13 17 Most Carried 18 | 5 16 18 Average Carried 13 | 3 10 17 Final Capacity 18 | 6 16 18 Final Carried 17 | 5 16 17 Class Distribution -------------------- 100% | Mutant Dominant Class ---------------- Mutant | -10/Materials Mutant | -10/Mines Resources | -11 -10 -10 ----------- Run | Scr Mat Min Matter Collected 973 | 197 583 193 Remotely . | . . . Salvage Created 698 | 77 505 116 Parts 51 | 8 31 12 Haulers Intercepted 2 | . 2 . Recyclers Shooed . | . . . Parts Field Recycled . | . . . Retrieved Matter . | . . . Parts Self-Destructed . | . . . Prevented . | . . . Kills | -11 -10 -10 ------- Run | Scr Mat Min Combat Hostiles Destroyed 16 | . 6 10 Melee 1 | . . 1 Guns 11 | . 6 5 AOE 4 | . . 4 Classes Destroyed 9 | 2 6 1 Worker 2 | . 1 1 Builder 1 | . 1 . Tunneler 3 | 2 1 . Hauler 2 | . 2 . Recycler 3 | 1 2 . Watcher 1 | . 1 . Swarmer 6 | . 2 4 Grunt 4 | . 4 . Assembled 6 | . . 6 Best Kill Streak 6 | 3 4 6 Combat Bots Only 6 | . 2 6 Max Kills in Single Turn 1 | 1 1 1 Gunslinging . | . . . Exploded 1 | . . 1 Melee 1 | . . 1 Uniques/NPCs Destroyed . | . . . Combat | -11 -10 -10 -------- Run | Scr Mat Min Damage Taken 595 | . 122 473 Core 94 | . 10 84 Absorbed by Shields . | . . . Core Remaining (%) 100 | 100 . . Volleys Fired 88 | 12 51 25 Largest 2 | 2 2 2 Hottest 100 | 70 100 85 Shots Fired 162 | 24 95 43 Gun 146 | 24 92 30 Cannon 8 | . . 8 Launcher 5 | . . 5 Special 3 | . 3 . Kinetic 120 | 12 92 16 Thermal 23 | 12 3 8 Explosive 5 | . . 5 Electromagnetic 14 | . . 14 Robot Hit Streak 7 | 7 5 5 Robot Miss Streak 4 | 3 4 3 Penetration Max . | . . . Secondary Targets 2 | . 2 . Max Gunslinging Chain 1 | . 1 . Shots Hit Robots 90 | 15 47 28 Core Hits 48 | 4 20 24 Critical Hits . | . . . Critical Kills . | . . . Critical Parts Destroyed . | . . . Melee Attacks . | . . . Impact . | . . . Slashing . | . . . Piercing . | . . . Sneak Attacks . | . . . Combat Hostiles . | . . . Follow-up Attacks . | . . . Damage Inflicted 1277 | 179 612 486 Guns 1002 | 179 612 211 Cannons 54 | . . 54 Explosions 214 | . . 214 Melee . | . . . Ramming 7 | . . 7 Kinetic 837 | 104 612 121 Thermal 129 | 75 . 54 Explosive 214 | . . 214 Electromagnetic 90 | . . 90 Impact . | . . . Slashing . | . . . Piercing . | . . . Highest Corruption 2 | . . 2 Average Corruption 1 | . . 1 Corruption Purged . | . . . Effects 2 | . . 2 Energy Discharges 1 | . . 1 Weapon Failures 1 | . . 1 Overload Shots . | . . . Overflow Damage 11 | . . 11 Projectiles . | . . . Explosions 11 | . . 11 Melee . | . . . Knockbacks . | . . . Impact . | . . . Kinetic . | . . . Secondary . | . . . Self-Inflicted Damage 3 | . . 3 Shots . | . . . Rammed 1 | . . 1 Targets Rammed 1 | . . 1 Kicked . | . . . Crushed . | . . . Highest Temperature 155 | 63 20 155 Average Temperature 44 | 28 11 59 Received Heat Transfer 166 | . 48 118 Siege Activations . | . . . Robots Corrupted . | . . . Combat Hostiles . | . . . Parts Fried . | . . . Impact Corruptions . | . . . Robots Melted . | . . . Combat Hostiles . | . . . Parts Melted . | . . . Heat Transferred 333 | 222 . 111 Parts Sabotaged . | . . . Parts Stolen . | . . . Parts Stripped . | . . . Power Chain Reactions . | . . . Missiles Intercepted . | . . . Alert | -11 -10 -10 ------- Run | Scr Mat Min Peak Influence 374 | 15 374 210 Average Influence 189 | 2 240 138 Maximum Alert Level 1 | . 1 1 Low Security (%) 53 | 100 23 89 Level 1 46 | . 76 10 Level 2 . | . . . Level 3 . | . . . Level 4 . | . . . Level 5 . | . . . High Security . | . . . Max Security . | . . . Squads Dispatched 5 | . 5 . Investigation 3 | . 3 . Extermination . | . . . Reinforcement 2 | . 2 . Assault . | . . . Garrison . | . . . Intercept . | . . . Construction Impeded . | . . . Haulers Reinforced . | . . . Stealth | -11 -10 -10 --------- Run | Scr Mat Min Distress Signals 3 | . 3 . Communications Jammed . | . . . Distress Signals . | . . . Times Spotted 40 | . 19 21 Peak Tracking Total 7 | . 4 7 Tactical Retreats 2 | . 1 1 Traps | -11 -10 -10 ------- Run | Scr Mat Min Traps Triggered 1 | . 1 . Indirectly . | . . . Trap Hack Attempts . | . . . Triggered . | . . . Disarmed . | . . . Reprogrammed . | . . . Reused . | . . . Traps Extracted . | . . . Installed . | . . . Triggered . | . . . Machines | -11 -10 -10 ---------- Run | Scr Mat Min Machines Disabled 1 | . . 1 Max in Single Turn 1 | . . 1 Machines Sabotaged . | . . . Garrisons Compromised . | . . . Overloaded Fab Kills . | . . . Fab Network Shutdowns . | . . . Hacking | -11 -10 -10 --------- Run | Scr Mat Min Machines Accessed 6 | . 6 . Terminals 5 | . 5 . Fabricators . | . . . Repair Stations . | . . . Recycling Units 1 | . 1 . Scanalyzers . | . . . Garrison Access . | . . . Total Hacks 23 | . 23 . Successful 16 | . 16 . Failed 7 | . 7 . Catastrophic 1 | . 1 . Database Lockouts . | . . . Manual 15 | . 15 . Terminals 21 | . 21 . Fabricators . | . . . Repair Stations . | . . . Recycling Units 2 | . 2 . Scanalyzers . | . . . Garrison Access . | . . . Terminal Hacks 12 | . 12 . Robot Analysis 4 | . 4 . Branch Access Points 1 | . 1 . Locate Traps 2 | . 2 . Recall Investigation 1 | . 1 . Hauler Manifests 1 | . 1 . Registered Components 1 | . 1 . Zone Layout 2 | . 2 . Fabricator Hacks . | . . . Repair Station Hacks . | . . . Recycling Unit Hacks 1 | . 1 . Retrieve Components 1 | . 1 . Scanalyzer . | . . . Garrison Access Hacks . | . . . Unauthorized Hacks 6 | . 6 . Terminals 2 | . 2 . Track 2 | . 2 . Fabricators . | . . . Repair Stations . | . . . Recycling Units 1 | . 1 . Tunnel 1 | . 1 . Scanalyzers . | . . . Garrison Access . | . . . Data Cores Recovered . | . . . Used . | . . . Hacking Detections 5 | . 5 . Full Trace Events 1 | . 1 . Feedback Events . | . . . Feedback Blocked . | . . . Robot Schematics Acquired . | . . . Robots Built . | . . . Matter . | . . . Time . | . . . Total Robot Build Rating . | . . . Part Schematics Acquired . | . . . Parts Built . | . . . Matter . | . . . Time . | . . . Total Part Build Rating . | . . . Parts Repaired . | . . . Time . | . . . Parts Recycled . | . . . Recycled Matter . | . . . Retrieved Matter . | . . . Retrieved Components 2 | . 2 . Parts Scanalyzed . | . . . Part Schematics Acquired . | . . . Parts Damaged . | . . . Bothacking | -11 -10 -10 ------------ Run | Scr Mat Min Used RIF Installer . | . . . Robots Hacked . | . . . Non-combat . | . . . Combat . | . . . Robot Hacks Applied . | . . . Relay Couplers Released . | . . . Robots Rewired . | . . . Allies Hacked . | . . . Hacks Repelled . | . . . Allies | -11 -10 -10 -------- Run | Scr Mat Min Total Allies 1 | . 1 . Largest Group 1 | . 1 1 Highest-Rated Group 61 | . 59 61 Highest-Rated Ally 61 | . 59 61 Total Orders . | . . . Ally Attacks 68 | . 42 26 Total Damage 919 | . 605 314 Kills 22 | . 14 8 Allies Corrupted . | . . . Allies Melted . | . . . Intel | -11 -10 -10 ------- Run | Scr Mat Min Robot Analysis Total 4 | . 4 . Derelict Logs Recovered . | . . . Drone Launches . | . . . Drone Recoveries . | . . . Exploration | -11 -10 -10 ------------- Run | Scr Mat Min Turns Passed 1927 | 86 1074 767 Spaces Moved 1356 | 43 800 513 Core 1 | 1 . . Treads 32 | . . 32 Legs . | . . . Wheels 1323 | 42 800 481 Hover . | . . . Flight . | . . . Fastest Speed 50 | 50 80 110 Average Speed 112 | 84 103 129 Slowest Speed 180 | 90 110 180 Overloaded Moves . | . . . Propulsion Burnouts . | . . . Robots Hopped . | . . . Cave-ins Triggered . | . . . Exploration Rate (%) 62 | 4 93 89 Regions Visited 2 Branch Regions 1 Pre-discovered Areas 1 | . 1 . Known Exits Taken 1 | . 1 . Unknown Exits Taken 1 | 1 . . Scrap Searched . | . . . Spaces Dug 3 | . 3 . Terrain Destroyed 31 | . 3 28 Melee . | . . . Projectile 3 | . 3 . AOE 28 | . . 28 Actions | -11 -10 -10 --------- Run | Scr Mat Min Total 1584 | 65 946 573 Wait 73 | . 61 12 Move 1354 | 42 799 513 Hop . | . . . Pick Up 26 | 5 18 3 Fast Attach 10 | 6 1 3 Attach 2 | . 1 1 Detach . | . . . Swap 16 | . 7 9 Drop 14 | . 8 6 Fire 88 | 12 51 25 Melee . | . . . Ram 1 | . . 1 Kick . | . . . Crush . | . . . Escape Stasis . | . . . Rewire . | . . . Trap . | . . . Miscellaneous . | . . . Route ------- -11/Scrapyard -10/Materials (discovered 5 exits: [*Mat x3] / *Min x2) -10/Mines (discovered 2 exits: [*Mat x2]) History --------- Turn | Location | Event 12 | -11/Scrapyard | Discovered new exit (range 16) 87 | -11/Scrapyard | Entered Materials 160 | -10/Materials | Discovered new exit (range 14) 230 | -10/Materials | Discovered new exit (range 15) 307 | -10/Materials | Build established: Mutant 450 | -10/Materials | Discovered new exit (range 15) 697 | -10/Materials | Discovered new exit (range 6) 767 | -10/Materials | Discovered new exit (range 12) 1070 | -10/Materials | Identified exit to Mines 1161 | -10/Materials | Entered Mines 1161 | -10/Mines | Accompanied by 1 ally 1248 | -10/Mines | Joined a pair of Derelicts in attacking an 0b10 outpost 1374 | -10/Mines | Discovered new exit (range 10) 1423 | -10/Mines | Discovered new exit (range 8) 1796 | -10/Mines | Assembled infested the area 1801 | -10/Mines | Assisted by a Guerilla fighting off Assembled 1853 | -10/Mines | Core integrity fell below 50% 1902 | -10/Mines | Core integrity fell below 20% 1928 | -10/Mines | Core destroyed Last Messages --------------- 01891_ System corrupted by crushing effect (+1). 01893_ as-86340 destroyed. 01899_ Acquired 10 matter. 01900_ as-75027 destroyed. 01903_ as-82267 destroyed. 01904_ Acquired 3 matter. 01904_ Player 2 system corrupted by crushing effect. 01905_ Destroyed Asb. Hover Unit. 01905_ as-61399 destroyed. 01906_ Player 2 attaches Lrg. Storage Unit. 01907_ as-25661 destroyed. 01907_ as-24088 destroyed. 01911_ as-81969 destroyed. 01913_ as-63802 destroyed. 01915_ The unstable cave ceiling collapses. 01917_ as-66890 destroyed. 01919_ Acquired 5 matter. 01921_ Acquired 3 matter. 01924_ The unstable cave ceiling collapses. 01927_ Acquired 2 matter. Map ----- +----------------------------------------------------+ | ??????????????## ## ##??????# ##### | | ???????????????## ##???????# #???## | | ????????????????## ##????????# #????## ## | | ?????????????????## #?????????# #####?###### | | ??????????????????# #?????????# ## ##?????# | | ??????????????????# #????????# # ##????# | | ??????????????????## #???????# ##???## | | ???????????????????## #??????# ######## | | ????????????????????## ##?????## ### | | ?????????????????????? #??????# ## | | ?????????????????????? #?????# """" ## ### | | ?????????????????????? #????# """" ### #?? | | ?????????????????????? #????# """" #?# #?? | | ?????????????????????# #????# ##?# #?? | | ????????????????????## #????## ## ##??# #?? | | ???????????????????## ???????###?## #???# #?? | | ??????????????????## ????????????# #???# #?? | | ??????????????????# ???????????# #???# #?? | | ??????????????##?## #??????????## ##??## ##? | | ???????????????=%# ##?????????###????# #? | | ????????????????] # ####?????????????# #? | | ?????????????????# #?????????????# #? | | ???????????????#!# # #?????????????# #? | | ?????????##????#a ###????????????# #? | | ????????? #???#$ @ #????????????# #? | | ?????????# #????# @ #???????????## #? | | ?????????# #????# # #??????????## ## | | ?????????# #?????#### # #??????????# # | | ?????????# #???????# ### #?????????## | | ?????????# #???????######??# ########### """ | | ?????????# #???????????????# % """ | | ?????????# ###???########??# """ | | ??????#### ##### #??### ######### # | | ?????## * #????#%#???????## # | | ????## %[#????# #????????# ## | | ????# ### =###### #????????## ####? | | ????# ## """"== #?????????#####???? | | ????## ## """"%########?????????????????? | | ?????## ## """"*#????????????????????????? | | ??????# ## #????????????????????????? | | ??????# #########????????????????????????? | | ??????# ## ##????????????????????????????????? | | ??????##########?????????????????????????????????? | | ?????????????????????????????????????????????????? | | ?????????????????????????????????????????????????? | | | | | | | | | | | +----------------------------------------------------+ Best States ------------- Heat Dissipation 25 Energy Generation 18 Energy Capacity 150 Matter Stores 300 Matter Capacity 300 Sight Range 16 Terrain Scan Density 10 Evasion (%) 44 Recoil Reduction 2 Item Schematics ----------------- None Robot Schematics ------------------ None Fabricated ------------ Nothing Alien Tech Used ----------------- None Achievements -------------- None Challenges ------------ None Game ------ Seed TacticalIntegrationShifter Manual? 0 Play Time 00:17:14 Cumulative 375.2 hours Start 2020.04.05 @ 09:18:09 End 2020.04.05 @ 09:31:57 Sessions 1 Manual Loads 0 Difficulty Rogue Special Mode AFD2020/Player2 Game No. 264 Rogue 264 Adventurer 0 Explorer 0 Win Type - Total 4 Types 4/0/0/0/0/0/0 Lore% 82 Gallery% 84 Achievement% 63 Wizard Run 0 Options --------- ASCII 0 Keyboard 0 Movement Mouse Keybinds 1 Fullscreen 2 Font 24/Smallcaps Map View 76x50 Tactical HUD 1 Map Filters NONE Filters NONE Steam 1 RUN: 69d049aa-7fd5-4fe0-9a2b-e97c69626c57